{"text_format":"1","workbook":"xlsx","n_sheets":2,"sheets":["LA002","BB Sheet"],"not_rendered":{"charts":0,"images":0,"macros":1,"external_links":0,"defined_names":2,"comments":1,"pivot_tables":0},"unopened":[],"bounds":{"document_bytes":16777216,"sheet_cells":100000,"rows_first":2000,"rows_last":500,"rows_between":2000,"halvings":0,"cell_chars":16384,"cell_head_chars":4096},"cells_cut":0,"cells_raw":0,"read":"whole","date_system":"1900"}

{"sheet":"LA002","index":0,"n_rows":451,"n_cols":90,"rows_kept":451,"cut":false,"hidden":false,"merged":[[3,88,4,88],[3,89,4,89],[3,27,3,30],[3,39,4,39],[3,41,4,41],[3,42,4,42],[3,38,4,38],[3,43,4,43],[3,53,4,53],[3,54,4,54],[3,55,4,55],[3,52,4,52],[3,48,3,51],[4,47,4,51],[3,60,3,63],[4,59,4,63],[3,15,3,18],[4,13,4,18],[3,21,3,24],[3,33,3,37],[4,20,4,24],[4,26,4,30],[4,1,4,5],[5,2,5,4],[4,7,4,11],[5,8,5,10],[4,33,4,37],[5,34,5,36],[5,48,5,50],[5,15,5,17],[5,21,5,23],[5,27,5,29],[5,70,5,72],[5,60,5,62],[3,84,3,87],[5,84,5,86],[3,77,3,80],[4,76,4,80],[5,77,5,79],[3,81,4,81],[3,56,4,56],[3,64,4,64],[3,65,4,65],[3,66,4,66],[3,74,4,74],[3,70,3,73],[4,69,4,73]]}
[{"$f":"SUM(449:449)","v":364},"= Fiber utilized by source cable",null,null,null,null,null,null,null,null,null,{"$f":"SUM(A1,A2,A3)","v":496},null,null,null,null,null,null,null,"= Total number of access fibers out of cabinet "]
[{"$f":"SUM(450:450)","v":132},"= Spare Fibers"]
[{"$f":"SUM(451:451)","v":0},"= Fiber Dedicated to Vacant or Undeveloped Land"]
["LA002 FIBER ALLOCATION",null,null,null,null,null,null,null,null,null,null,null,null,null,null,"This cable is not landed",null,null,null,null,null,null,null,null,null,null,null,null,null,null,null,null,null,null,null,null,null,null,159505,null,null,null,null,159503,null,null,null,null,null,null,null,null,233228,233225,233185,233188,233194,null,null,null,null,null,null,null,233315,233308,233295,null,null,null,null,null,null,null,233209,null,null,null,null,null,null,233044,null,null,null,null,null,null,233155,233158]
[null,"LA002.1",null,null,null,null,null,"LA002.2",null,null,null,null,null,"LA002.3",null,null,null,null,null,null,"LA002.4",null,null,null,null,null,"LA002.5",null,null,null,null,null,null,"LA002.6",null,null,null,null,null,null,null,null,null,null,null,null,null,"LA002.7",null,null,null,null,null,null,null,null,null,null,null,"LA002.8",null,null,null,null,null,null,null,null,null,"LA002.9",null,null,null,null,null,null,"LA002.10",null,null,null,null,null,null,null,"LA002.11"]
[null,null,"Splice Location",null,null,"24F",null,null,"Splice Location",null,null,"48F","24F",null,null,"Splice Location",null,null,"24F",null,null,"Splice Location",null,null,"24F",null,"DD/LT","Splice Location",null,null,"48F","24F",null,null,"Splice Location",null,null,"288F","96F","48F",null,"72F","48F","24F",null,null,null,null,"Splice Location",null,null,96,24,24,24,24,24,null,null,null,"Splice Location",null,null,96,24,24,24,null,null,null,"Splice Location",null,null,96,24,null,null,"Splice Location",null,null,96,24,null,null,"Splice Location",null,null,72,24,24]
[null,null,"Module Assembly","Module","Port",{"$f":"B5","v":"LA002.1"},null,null,"Module Assembly","Module","Port",{"$f":"H5","v":"LA002.2"},"LA002.2.1",null,"hut Port","Module Assembly","Module","Port","LA002.3",null,"hut Port","Module Assembly","Module","Port",{"$f":"U5","v":"LA002.4"},null,null,"Module Assembly","Module","Port",{"$f":"AA5","v":"LA002.5"},"LA002.5.1",null,"Input Port","Module Assembly","Module","Port",{"$f":"AH5","v":"LA002.6"},"LA002.6.1","LA002.6.2",null,"LA002.6.3","LA002.6.4","LA002.6.4.1",null,null,null,"Input Port","Module Assembly","Module","Port",{"$f":"AV5","v":"LA002.7"},"LA002.7.1","LAOO2.7.2","LA002.7.3","LA002.7.4","LA002.7.5",null,null,"Input port","Module Assembly","Module","Port",{"$f":"BH5","v":"LA002.8"},"LA002.8.1","LA002.8.2","LA002.8.3",null,null,"Input port","Module Assembly","Module","Port",{"$f":"BR5","v":"LA002.9"},"LA002.9.1",null,null,"Module Assembly","Module","Port",{"$f":"BY5","v":"LA002.10"},"LA002.10.1",null,null,"Module Assembly","Module","Port",{"$f":"CG5","v":"LA002.11"},"LA002.11.1","LA002.11.2"]
[null,null,24,6,1,1,null,null,24,4,1,1,1,null,null,23,6,1,1,null,null,23,5,1,1,null,376356,1,5,1,1,null,null,null,2,1,1,1,1,null,null,null,null,null,null,null,null,null,4,1,1,1,null,null,null,null,null,null,null,null,4,5,1,1,null,null,null,null,null,null,5,3,1,1,1,null,null,6,1,1,1,null,null,null,6,5,1,1]
[null,null,24,6,2,2,null,null,24,4,2,2,2,null,null,23,6,2,2,null,null,23,5,2,2,null,376370,1,5,2,2,null,null,null,2,1,2,2,2,null,null,null,null,null,null,null,null,null,4,1,2,2,null,null,null,null,null,null,null,null,4,5,2,2,null,null,null,null,null,null,5,3,2,2,2,null,null,6,1,2,2,null,null,null,6,5,2,2]
[null,null,24,6,3,3,null,null,24,4,3,3,3,null,null,23,6,3,3,null,null,23,5,3,3,null,376358,1,5,3,3,null,null,null,2,1,3,3,3,null,null,null,null,null,null,null,null,null,4,1,3,3,null,null,null,null,null,null,null,null,4,5,3,3,null,null,null,null,null,null,5,3,3,3,3,null,null,6,1,3,3,null,null,null,6,5,3,3]
[null,null,24,6,4,4,null,null,24,4,4,4,4,null,null,23,6,4,4,null,null,23,5,4,4,null,376357,1,5,4,4,null,null,null,2,1,4,4,4,null,null,null,null,null,null,null,null,null,4,1,4,4,null,null,null,null,null,null,null,null,4,5,4,4,null,null,null,null,null,null,5,3,4,4,4,null,null,6,1,4,4,null,null,null,6,5,4,4]
[null,null,24,6,5,5,null,null,24,4,5,5,5,null,null,23,6,5,5,null,null,23,5,5,5,null,376371,1,5,5,5,null,null,null,2,1,5,5,5,null,null,null,null,null,null,null,null,null,4,1,5,5,null,null,null,null,null,null,null,null,4,5,5,5,null,null,null,null,null,null,5,3,5,5,5,null,null,6,1,5,5,null,null,null,6,5,5,5]
[null,null,24,6,6,6,null,null,24,4,6,6,6,null,null,23,6,6,6,null,null,23,5,6,6,null,376360,1,5,6,6,null,null,null,2,1,6,6,6,null,null,null,null,null,null,null,null,null,4,1,6,6,null,null,null,null,null,null,null,null,4,5,6,6,null,null,null,null,null,null,5,3,6,6,6,null,null,6,1,6,6,null,null,null,6,5,6,6]
[null,null,24,6,7,7,null,null,24,4,7,7,7,null,null,23,6,7,7,null,null,23,5,7,7,null,376359,1,5,7,7,null,null,null,2,1,7,7,7,null,null,null,null,null,null,null,null,null,4,1,7,7,null,null,null,null,null,null,null,null,4,5,7,7,null,null,null,null,null,null,5,3,7,7,7,null,null,6,1,7,7,null,null,null,6,5,7,7]
[null,null,24,6,8,8,null,null,24,4,8,8,8,null,null,23,6,8,8,null,null,23,5,8,8,null,376372,1,5,8,8,null,null,null,2,1,8,8,8,null,null,null,null,null,null,null,null,null,4,1,8,8,null,null,null,null,null,null,null,null,4,5,8,8,null,null,null,null,null,null,5,3,8,8,8,null,null,6,1,8,8,null,null,null,6,5,8,8]
[null,null,24,6,9,9,null,null,24,4,9,9,9,null,null,23,6,9,9,null,null,23,5,9,9,null,376361,1,5,9,9,null,null,null,2,1,9,9,9,null,null,null,null,null,null,null,null,null,4,1,9,9,null,null,null,null,null,null,null,null,4,5,9,9,null,null,null,null,null,null,5,3,9,9,9,null,null,6,1,9,9,null,null,null,6,5,9,9]
[null,null,24,6,10,10,null,null,24,4,10,10,10,null,null,23,6,10,10,null,null,23,5,10,10,null,null,1,5,10,10,null,null,null,2,1,10,10,10,null,null,null,null,null,null,null,null,null,4,1,10,10,null,null,null,null,null,null,null,null,4,5,10,10,null,null,null,null,null,null,5,3,10,10,10,null,null,6,1,10,10,null,null,null,6,5,10,10]
[null,368835,24,6,11,11,null,null,24,4,11,11,11,null,null,23,6,11,11,null,null,23,5,11,11,null,null,1,5,11,11,null,null,null,2,1,11,11,11,null,null,null,null,null,null,null,null,null,4,1,11,11,null,null,null,null,null,null,null,null,4,5,11,11,null,null,null,null,null,null,5,3,11,11,11,null,null,6,1,11,11,null,null,null,6,5,11,11]
[null,365857,24,6,12,12,null,null,24,4,12,12,12,null,null,23,6,12,12,null,null,23,5,12,12,null,null,1,5,12,12,null,null,null,2,1,12,12,12,null,null,null,null,null,null,null,null,null,4,1,12,12,null,null,null,null,null,null,null,null,4,5,12,12,null,null,null,null,null,null,5,3,12,12,12,null,null,6,1,12,12,null,null,null,6,5,12,12]
[null,256769,24,5,1,13,null,274052,24,3,1,13,13,null,null,23,6,1,13,null,null,23,5,13,13,null,376368,1,5,13,13,1,null,null,2,1,13,13,13,null,null,null,null,null,null,null,null,null,4,1,13,13,null,null,null,null,null,null,null,null,4,5,13,13,null,null,null,null,null,null,5,3,13,13,13,null,null,6,1,13,13,null,null,null,6,5,13,13]
[null,null,24,5,2,14,null,null,24,3,2,14,14,null,null,23,6,2,14,null,null,23,5,14,14,null,null,1,5,14,14,2,null,null,2,1,14,14,14,null,null,null,null,null,null,null,null,null,4,1,14,14,null,null,null,null,null,null,null,null,4,5,14,14,null,null,null,null,null,null,5,3,14,14,14,null,null,6,1,14,14,null,null,null,6,5,14,14,2]
[null,null,24,5,3,15,null,null,24,3,3,15,15,null,null,23,6,3,15,null,null,23,5,15,15,null,null,1,5,15,15,3,null,null,2,1,15,15,15,null,null,null,null,null,null,null,null,null,4,1,15,15,null,null,null,null,null,null,null,null,4,5,15,15,null,null,null,null,null,null,5,3,15,15,15,null,null,6,1,15,15,null,null,null,6,5,15,15,3]
[null,null,24,5,4,16,null,null,24,3,4,16,16,null,null,23,6,4,16,null,null,23,5,16,16,null,376373,1,5,16,16,4,null,null,2,1,16,16,16,null,null,null,null,null,null,null,null,null,4,1,16,16,null,null,null,null,null,null,null,null,4,5,16,16,null,null,null,null,null,null,5,3,16,16,null,null,null,6,1,16,16,null,null,null,6,5,16,16,4]
[null,null,24,5,5,17,null,null,24,3,5,17,17,null,null,23,6,5,17,null,null,23,5,17,17,null,376376,1,5,17,17,5,null,null,2,1,17,17,17,null,null,null,null,null,null,null,null,null,4,1,17,17,5,null,null,null,null,null,null,null,4,5,17,17,null,null,null,null,null,null,5,3,17,17,null,null,null,6,1,17,17,null,null,null,6,5,17,17,5]
[null,null,24,5,6,18,null,null,24,3,6,18,18,null,null,23,6,6,18,null,null,23,5,18,18,null,376.75,1,5,18,18,6,null,null,2,1,18,18,18,null,null,null,null,null,null,null,null,null,4,1,18,18,6,null,null,null,null,null,null,null,4,5,18,18,null,null,null,null,null,null,5,3,18,18,null,null,null,6,1,18,18,null,null,null,6,5,18,18,6]
[null,null,24,5,7,19,null,null,24,3,7,19,19,null,null,23,6,7,19,null,null,23,5,19,19,null,396045,1,5,19,19,7,null,null,2,1,19,19,19,null,null,null,null,null,null,null,null,null,4,1,19,19,7,null,null,null,null,null,null,null,4,5,19,19,null,null,null,null,null,null,5,3,19,19,null,null,null,6,1,19,19,null,null,null,6,5,19,19,7]
[null,null,24,5,8,20,null,null,24,3,8,20,20,null,null,23,6,8,20,null,null,23,5,20,20,null,376374,1,5,20,20,8,null,null,2,1,20,20,20,null,null,null,null,null,null,null,null,null,4,1,20,20,8,null,null,null,null,null,null,null,4,5,20,20,null,null,null,null,null,null,5,3,20,20,null,null,null,6,1,20,20,null,null,null,6,5,20,20,8]
[null,null,24,5,9,21,null,null,24,3,9,21,21,null,null,23,6,9,21,null,null,23,5,21,21,null,376378,1,5,21,21,9,null,null,2,1,21,21,21,null,null,null,null,null,null,null,null,null,4,1,21,21,9,null,null,null,null,null,null,null,4,5,21,21,null,null,null,null,null,null,5,3,21,21,null,null,null,6,1,21,21,null,null,null,6,5,21,21,9]
[null,null,24,5,10,22,null,null,24,3,10,22,22,null,null,23,6,10,22,null,null,23,5,22,22,null,376377,1,5,22,22,10,null,null,2,1,22,22,22,null,null,null,null,null,null,null,null,null,4,1,22,22,10,null,null,null,null,null,null,null,4,5,22,22,null,null,null,null,null,null,5,3,22,22,null,null,null,6,1,22,22,null,null,null,6,5,22,22,10]
[null,null,24,5,11,23,null,null,24,3,11,23,23,null,null,23,6,11,23,null,null,23,5,23,23,null,376362,1,5,23,23,11,null,null,2,1,23,23,23,null,null,null,null,null,null,null,null,null,4,1,23,23,11,null,null,null,null,null,null,null,4,5,23,23,null,null,null,null,null,null,5,3,23,23,null,null,null,6,1,23,23,null,null,null,6,5,23,23,11]
[null,null,24,5,12,24,null,null,24,3,12,24,24,null,null,23,6,12,24,null,null,23,5,24,24,null,396044,1,5,24,24,12,null,null,2,1,24,24,24,null,null,null,null,null,null,null,null,null,4,1,24,24,12,null,null,null,null,null,null,null,4,5,24,24,null,null,null,null,null,null,5,3,24,24,null,null,null,6,1,24,24,null,null,null,6,5,24,24,12]
[null,null,null,null,null,null,null,null,24,2,1,25,null,null,null,null,null,null,null,null,null,null,null,null,null,null,376364,1,6,1,25,null,null,null,2,2,1,25,25,null,null,null,null,null,null,null,null,null,4,2,1,25,13,null,null,null,null,null,null,null,4,6,1,25,null,null,null,null,null,null,5,4,1,25,null,null,null,6,2,1,25,null,null,null,6,6,1,25,13]
[null,null,null,null,null,null,null,null,24,2,2,26,null,null,null,null,null,null,null,null,null,null,null,null,null,null,376365,1,6,2,26,null,null,null,2,2,2,26,26,null,null,null,null,null,null,null,null,null,4,2,2,26,null,2,null,null,null,null,null,null,4,6,2,26,null,null,null,null,null,null,5,4,2,26,null,null,null,6,2,2,26,null,null,null,6,6,2,26,14]
[null,null,null,null,null,null,null,375560,24,2,3,27,null,null,null,null,null,null,null,null,null,null,null,null,null,null,376366,1,6,3,27,null,null,null,2,2,3,27,27,null,null,null,null,null,null,null,null,null,4,2,3,27,null,3,null,null,null,null,null,null,4,6,3,27,null,null,null,null,null,null,5,4,3,27,null,null,null,6,2,3,27,null,null,null,6,6,3,27,15]
[null,null,null,null,null,null,null,null,24,2,4,28,null,null,null,null,null,null,null,null,null,null,null,null,null,null,376379,1,6,4,28,null,null,null,2,2,4,28,28,null,null,null,null,null,null,null,null,null,4,2,4,28,null,4,null,null,null,null,null,null,4,6,4,28,null,null,null,null,null,null,5,4,4,28,null,null,null,6,2,4,28,null,null,null,6,6,4,28]
[null,null,null,null,null,null,null,null,24,2,5,29,null,null,null,null,null,null,null,null,null,null,null,null,null,null,376381,1,6,5,29,null,null,null,2,2,5,29,29,null,null,null,null,null,null,null,null,null,4,2,5,29,null,5,null,null,null,null,null,null,4,6,5,29,5,null,null,null,null,null,5,4,5,29,null,null,null,6,2,5,29,null,null,null,6,6,5,29]
[null,null,null,null,null,null,null,null,24,2,6,30,null,null,null,null,null,null,null,null,null,null,null,null,null,null,376380,1,6,6,30,null,null,null,2,2,6,30,30,null,null,null,null,null,null,null,null,null,4,2,6,30,null,6,null,null,null,null,null,null,4,6,6,30,6,null,null,null,null,null,5,4,6,30,null,null,null,6,2,6,30,null,null,null,6,6,6,30]
[null,null,null,null,null,null,null,null,24,2,7,31,null,null,null,null,null,null,null,null,null,null,null,null,null,null,376367,1,6,7,31,null,null,null,2,2,7,31,31,null,null,null,null,null,null,null,null,null,4,2,7,31,null,7,null,null,null,null,null,null,4,6,7,31,7,null,null,null,null,null,5,4,7,31,null,null,null,6,2,7,31,null,null,null,6,6,7,31]
[null,null,null,null,null,null,null,null,24,2,8,32,null,null,null,null,null,null,null,null,null,null,null,null,null,null,366720,1,6,8,32,null,null,null,2,2,8,32,32,null,null,null,null,null,null,null,null,null,4,2,8,32,null,8,null,null,null,null,null,null,4,6,8,32,8,null,null,null,null,null,5,4,8,32,null,null,null,6,2,8,32,null,null,null,6,6,8,32]
[null,null,null,null,null,null,null,null,24,2,9,33,null,null,null,null,null,null,null,null,null,null,null,null,null,null,396043,1,6,9,33,null,null,null,2,2,9,33,33,null,null,null,null,null,null,null,null,null,4,2,9,33,null,9,null,null,null,null,null,null,4,6,9,33,9,null,null,null,null,null,5,4,9,33,null,null,null,6,2,9,33,null,null,null,6,6,9,33,null,9]
[null,null,null,null,null,null,null,null,24,2,10,34,null,null,null,null,null,null,null,null,null,null,null,null,null,null,396041,1,6,10,34,null,null,null,2,2,10,34,34,null,null,null,null,null,null,null,null,null,4,2,10,34,null,10,null,null,null,null,null,null,4,6,10,34,10,null,null,null,null,null,5,4,10,34,null,null,null,6,2,10,34,null,null,null,6,6,10,34,null,10]
[null,null,null,null,null,null,null,null,24,2,11,35,null,null,null,null,null,null,null,null,null,null,null,null,null,null,396042,1,6,11,35,null,null,null,2,2,11,35,35,null,null,null,null,null,null,null,null,null,4,2,11,35,null,11,null,null,null,null,null,null,4,6,11,35,11,null,null,null,null,null,5,4,11,35,null,null,null,6,2,11,35,11,null,null,6,6,11,35,null,11]
[null,null,null,null,null,null,null,370236,24,2,12,36,null,null,null,null,null,null,null,null,null,null,null,null,null,null,null,1,6,12,36,null,null,null,2,2,12,36,36,null,null,null,null,null,null,null,null,null,4,2,12,36,null,12,null,null,null,null,null,null,4,6,12,36,12,null,null,null,null,null,5,4,12,36,null,null,null,6,2,12,36,12,null,null,6,6,12,36,null,12]
[null,null,null,null,null,null,null,348801,24,1,1,37,null,null,null,null,null,null,null,null,null,null,null,null,null,null,null,1,6,13,37,null,null,null,2,2,13,37,37,null,null,null,null,null,null,null,null,null,4,2,13,37,null,13,null,null,null,null,null,null,4,6,13,37,13,null,null,null,null,null,5,4,13,37,null,null,null,6,2,13,37,13,null,null,6,6,13,37,null,13]
[null,null,null,null,null,null,null,null,24,1,2,38,null,null,null,null,null,null,null,null,null,null,null,null,null,null,null,1,6,14,38,null,null,null,2,2,14,38,38,null,null,null,null,null,null,null,null,null,4,2,14,38,null,14,null,null,null,null,null,null,4,6,14,38,14,null,null,null,null,null,5,4,14,38,null,null,null,6,2,14,38,14,null,null,6,6,14,38,null,14]
[null,null,null,null,null,null,null,null,24,1,3,39,null,null,null,null,null,null,null,null,null,null,null,null,null,null,null,1,6,15,39,null," ",null,2,2,15,39,39,null,null,null,null,null,null,null,null,null,4,2,15,39,null,null,null,null,null,null,null,null,4,6,15,39,15,null,null,null,null,null,5,4,15,39,null,null,null,6,2,15,39,15,null,null,6,6,15,39,null,15]
[null,null,null,null,null,null,null,null,24,1,4,40,null,null,null,null,null,null,null,null,null,null,null,null,null,null,null,1,6,16,40,null,null,null,2,2,16,40,40,null,null,null,null,null,null,null,null,null,4,2,16,40,null,null,null,null,null,null,null,null,4,6,16,40,16,null,null,null,null,null,5,4,16,40,null,null,null,6,2,16,40,16,null,null,6,6,16,40,null,16]
[null,null,null,null,null,null,null,null,24,1,5,41,null,null,null,null,null,null,null,null,null,null,null,null,null,null,null,1,6,17,41,null,null,null,2,2,17,41,41,null,null,null,null,null,null,null,null,null,4,2,17,41,null,null,null,null,null,null,null,null,4,6,17,41,null,null,null,null,null,null,5,4,17,41,null,null,null,6,2,17,41,17,null,null,6,6,17,41,null,17]
[null,null,null,null,null,null,null,null,24,1,6,42,null,null,null,null,null,null,null,null,null,null,null,null,null,null,null,1,6,18,42,null,null,null,2,2,18,42,42,null,null,null,null,null,null,null,null,null,4,2,18,42,null,null,null,null,null,null,null,null,4,6,18,42,null,null,null,null,null,null,5,4,18,42,null,null,null,6,2,18,42,18,null,null,6,6,18,42,null,18]
[null,null,null,null,null,null,null,null,24,1,7,43,null,null,null,null,null,null,null,null,null,null,null,null,null,null,null,1,6,19,43,null,null,null,2,2,19,43,43,null,null,null,null,null,null,null,null,null,4,2,19,43,null,null,null,null,null,null,null,null,4,6,19,43,null,null,null,null,null,null,5,4,19,43,null,null,null,6,2,19,43,19,null,null,6,6,19,43]
[null,null,null,null,null,null,null,null,24,1,8,44,null,null,null,null,null,null,null,null,null,null,null,null,null,null,null,1,6,20,44,null,null,null,2,2,20,44,44,null,null,null,null,null,null,null,null,null,4,2,20,44,null,null,null,null,null,null,null,null,4,6,20,44,null,null,null,null,null,null,5,4,20,44,null,null,null,6,2,20,44,20,null,null,6,6,20,44]
[null,null,null,null,null,null,null,null,24,1,9,45,null,null,null,null,null,null,null,null,null,null,null,null,null,null,null,1,6,21,45,null,null,null,2,2,21,45,45,null,null,null,null,null,null,null,null,null,4,2,21,45,null,null,null,null,null,null,null,null,4,6,21,45,null,null,null,null,null,null,5,4,21,45,null,null,null,6,2,21,45,null,null,null,6,6,21,45]
[null,null,null,null,null,null,null,null,24,1,10,46,null,null,null,null,null,null,null,null,null,null,null,null,null,null,null,1,6,22,46,null,null,null,2,2,22,46,46,null,null,null,null,null,null,null,null,null,4,2,22,46,null,null,null,null,null,null,null,null,4,6,22,46,null,null,null,null,null,null,5,4,22,46,null,null,null,6,2,22,46,null,null,null,6,6,22,46]
[null,null,null,null,null,null,null,null,24,1,11,47,null,null,null,null,null,null,null,null,null,null,null,null,null,null,null,1,6,23,47,null,null,null,2,2,23,47,47,null,null,null,null,null,null,null,null,null,4,2,23,47,null,null,null,null,null,null,null,null,4,6,23,47,null,null,null,null,null,null,5,4,23,47,null,null,null,6,2,23,47,null,null,null,6,6,23,47]
[null,null,null,null,null,null,null,null,24,1,12,48,null,null,null,null,null,null,null,null,null,null,null,null,null,null,null,1,6,24,48,null,null,null,2,2,24,48,48,null,null,null,null,null,null,null,null,null,4,2,24,48,null,null,null,null,null,null,null,null,4,6,24,48,null,null,null,null,null,null,5,4,24,48,null,null,null,6,2,24,48,null,null,null,6,6,24,48]
[null,null,null,null,null,null,null,null,null,null,null,null,null,null,null,null,null,null,null,null,null,null,null,null,null,null,null,null,null,null,null,null,null,null,2,3,1,49,49,null,null,null,null,null,null,null,null,null,4,3,1,49,null,null,null,null,null,null,null,null,5,1,1,49,null,1,null,null,null,null,5,5,1,49,null,null,null,6,3,1,49,null,null,null,7,1,1,49]
[null,null,null,null,null,null,null,null,null,null,null,null,null,null,null,null,null,null,null,null,null,null,null,null,null,null,null,null,null,null,null,null,null,null,2,3,2,50,50,null,null,null,null,null,null,null,null,null,4,3,2,50,null,null,null,null,null,null,null,null,5,1,2,50,null,2,null,null,null,null,5,5,2,50,null,null,null,6,3,2,50,null,null,null,7,1,2,50]
[null,null,null,null,null,null,null,null,null,null,null,null,null,null,null,null,null,null,null,null,null,null,null,null,null,null,null,null,null,null,null,null,null,null,2,3,3,51,51,null,null,null,null,null,null,null,null,null,4,3,3,51,null,null,null,null,null,null,null,null,5,1,3,51,null,3,null,null,null,null,5,5,3,51,null,null,null,6,3,3,51,null,null,null,7,1,3,51]
[null,null,null,null,null,null,null,null,null,null,null,null,null,null,null,null,null,null,null,null,null,null,null,null,null,null,null,null,null,null,null,null,null,null,2,3,4,52,52,null,null,null,null,null,null,null,null,null,4,3,4,52,null,null,null,null,null,null,null,null,5,1,4,52,null,4,null,null,null,null,5,5,4,52,null,null,null,6,3,4,52,null,null,null,7,1,4,52]
[null,null,null,null,null,null,null,null,null,null,null,null,null,null,null,null,null,null,null,null,null,null,null,null,null,null,null,null,null,null,null,null,null,null,2,3,5,53,53,null,null,null,null,null,null,null,null,null,4,3,5,53,null,null,null,null,null,null,null,null,5,1,5,53,null,5,null,null,null,null,5,5,5,53,null,null,null,6,3,5,53,null,null,null,7,1,5,53]
[null,null,null,null,null,null,null,null,null,null,null,null,null,null,null,null,null,null,null,null,null,null,null,null,null,null,null,null,null,null,null,null,null,null,2,3,6,54,54,null,null,null,null,null,null,null,null,null,4,3,6,54,null,null,null,null,null,null,null,null,5,1,6,54,null,6,null,null,null,null,5,5,6,54,null,null,null,6,3,6,54,null,null,null,7,1,6,54]
[null,null,null,null,null,null,null,null,null,null,null,null,null,null,null,null,null,null,null,null,null,null,null,null,null,null,null,null,null,null,null,null,null,null,2,3,7,55,55,null,null,null,null,null,null,null,null,null,4,3,7,55,null,null,null,null,null,null,null,null,5,1,7,55,null,7,null,null,null,null,5,5,7,55,null,null,null,6,3,7,55,null,null,null,7,1,7,55]
[null,null,null,null,null,null,null,null,null,null,null,null,null,null,null,null,null,null,null,null,null,null,null,null,null,null,null,null,null,null,null,null,null,null,2,3,8,56,56,null,null,null,null,null,null,null,null,null,4,3,8,56,null,null,null,null,null,null,null,null,5,1,8,56,null,8,null,null,null,null,5,5,8,56,null,null,null,6,3,8,56,null,null,null,7,1,8,56]
[null,null,null,null,null,null,null,null,null,null,null,null,null,null,null,null,null,null,null,null,null,null,null,null,null,null,null,null,null,null,null,null,null,null,2,3,9,57,57,null,null,null,null,null,null,null,null,null,4,3,9,57,null,null,9,null,null,null,null,null,5,1,9,57,null,9,null,null,null,null,5,5,9,57,null,null,null,6,3,9,57,null,null,null,7,1,9,57]
[null,null,null,null,null,null,null,null,null,null,null,null,null,null,null,null,null,null,null,null,null,null,null,null,null,null,null,null,null,null,null,null,null,null,2,3,10,58,58,null,null,null,null,null,null,null,null,null,4,3,10,58,null,null,10,null,null,null,null,null,5,1,10,58,null,10,null,null,null,null,5,5,10,58,null,null,null,6,3,10,58,null,null,null,7,1,10,58]
[null,null,null,null,null,null,null,null,null,null,null,null,null,null,null,null,null,null,null,null,null,null,null,null,null,null,null,null,null,null,null,null,null,null,2,3,11,59,59,null,null,null,null,null,null,null,null,null,4,3,11,59,null,null,11,null,null,null,null,null,5,1,11,59,null,null,null,null,null,null,5,5,11,59,null,null,null,6,3,11,59,null,null,null,7,1,11,59]
[null,null,null,null,null,null,null,null,null,null,null,null,null,null,null,null,null,null,null,null,null,null,null,null,null,null,null,null,null,null,null,null,null,null,2,3,12,60,60,null,null,null,null,null,null,null,null,null,4,3,12,60,null,null,12,null,null,null,null,null,5,1,12,60,null,null,null,null,null,null,5,5,12,60,null,null,null,6,3,12,60,null,null,null,7,1,12,60]
[null,null,null,null,null,null,null,null,null,null,null,null,null,null,null,null,null,null,null,null,null,null,null,null,null,null,null,null,null,null,null,null,null,null,2,3,13,61,61,null,null,null,null,null,null,null,null,null,4,3,13,61,null,null,13,null,null,null,null,null,5,1,13,61,null,null,null,null,null,null,5,5,13,61,null,null,null,6,3,13,61,null,null,null,7,1,13,61]
[null,null,null,null,null,null,null,null,null,null,null,null,null,null,null,null,null,null,null,null,null,null,null,null,null,null,null,null,null,null,null,null,null,null,2,3,14,62,62,null,null,null,null,null,null,null,null,null,4,3,14,62,null,null,14,null,null,null,null,null,5,1,14,62,null,null,null,null,null,null,5,5,14,62,null,null,null,6,3,14,62,null,null,null,7,1,14,62]
[null,null,null,null,null,null,null,null,null,null,null,null,null,null,null,null,null,null,null,null,null,null,null,null,null,null,null,null,null,null,null,null,null,null,2,3,15,63,63,null,null,null,null,null,null,null,null,null,4,3,15,63,null,null,15,null,null,null,null,null,5,1,15,63,null,null,null,null,null,null,5,5,15,63,null,null,null,6,3,15,63,null,null,null,7,1,15,63]
[null,null,null,null,null,null,null,null,null,null,null,null,null,null,null,null,null,null,null,null,null,null,null,null,null,null,null,null,null,null,null,null,null,null,2,3,16,64,64,null,null,null,null,null,null,null,null,null,4,3,16,64,null,null,16,null,null,null,null,null,5,1,16,64,null,null,null,null,null,null,5,5,16,64,null,null,null,6,3,16,64,null,null,null,7,1,16,64]
[null,null,null,null,null,null,null,null,null,null,null,null,null,null,null,null,null,null,null,null,null,null,null,null,null,null,null,null,null,null,null,null,null,null,2,3,17,65,65,null,null,null,null,null,null,null,null,null,4,3,17,65,null,null,17,null,null,null,null,null,5,1,17,65,null,null,null,null,null,null,5,5,17,65,null,null,null,6,3,17,65,null,null,null,7,1,17,65]
[null,null,null,null,null,null,null,null,null,null,null,null,null,null,null,null,null,null,null,null,null,null,null,null,null,null,null,null,null,null,null,null,null,null,2,3,18,66,66,null,null,null,null,null,null,null,null,null,4,3,18,66,null,null,null,null,null,null,null,null,5,1,18,66,null,null,null,null,null,null,5,5,18,66,null,null,null,6,3,18,66,null,null,null,7,1,18,66]
[null,null,null,null,null,null,null,null,null,null,null,null,null,null,null,null,null,null,null,null,null,null,null,null,null,null,null,null,null,null,null,null,null,null,2,3,19,67,67,null,null,null,null,null,null,null,null,null,4,3,19,67,null,null,null,null,null,null,null,null,5,1,19,67,null,null,null,null,null,null,5,5,19,67,null,null,null,6,3,19,67,null,null,null,7,1,19,67]
[null,null,null,null,null,null,null,null,null,null,null,null,null,null,null,null,null,null,null,null,null,null,null,null,null,null,null,null,null,null,null,null,null,null,2,3,20,68,68,null,null,null,null,null,null,null,null,null,4,3,20,68,null,null,null,8,null,null,null,null,5,1,20,68,null,null,null,null,null,null,5,5,20,68,null,null,null,6,3,20,68,null,null,null,7,1,20,68]
[null,null,null,null,null,null,null,null,null,null,null,null,null,null,null,null,null,null,null,null,null,null,null,null,null,null,null,null,null,null,null,null,null,null,2,3,21,69,69,null,null,null,null,null,null,null,null,null,4,3,21,69,null,null,null,9,null,null,null,null,5,1,21,69,null,null,null,null,null,null,5,5,21,69,null,null,null,6,3,21,69,null,null,null,7,1,21,69]
[null,null,null,null,null,null,null,null,null,null,null,null,null,null,null,null,null,null,null,null,null,null,null,null,null,null,null,null,null,null,null,null,null,null,2,3,22,70,70,null,null,null,null,null,null,null,null,null,4,3,22,70,null,null,null,10,null,null,null,null,5,1,22,70,null,null,null,null,null,null,5,5,22,70,null,null,null,6,3,22,70,null,null,null,7,1,22,70]
[null,null,null,null,null,null,null,null,null,null,null,null,null,null,null,null,null,null,null,null,null,null,null,null,null,null,null,null,null,null,null,null,null,null,2,3,23,71,71,null,null,null,null,null,null,null,null,null,4,3,23,71,null,null,null,11,null,null,null,null,5,1,23,71,null,null,11,null,null,null,5,5,23,71,null,null,null,6,3,23,71,null,null,null,7,1,23,71]
[null,null,null,null,null,null,null,null,null,null,null,null,null,null,null,null,null,null,null,null,null,null,null,null,null,null,null,null,null,null,null,null,null,null,2,3,24,72,72,null,null,null,null,null,null,null,null,null,4,3,24,72,null,null,null,12,null,null,null,null,5,1,24,72,null,null,12,null,null,null,5,5,24,72,null,null,null,6,3,24,72,null,null,null,7,1,24,72]
[null,null,null,null,null,null,null,null,null,null,null,null,null,null,null,null,null,null,null,null,null,null,null,null,null,null,null,null,null,null,null,null,null,null,2,4,1,73,73,null,null,null,null,null,null,null,null,null,4,4,1,73,null,null,null,13,null,null,null,null,5,2,1,73,null,null,13,null,null,null,5,6,1,73,null,null,null,6,4,1,73]
[null,null,null,null,null,null,null,null,null,null,null,null,null,null,null,null,null,null,null,null,null,null,null,null,null,null,null,null,null,null,null,null,null,null,2,4,2,74,74,null,null,null,null,null,null,null,null,null,4,4,2,74,null,null,null,14,null,null,null,null,5,2,2,74,null,null,14,null,null,null,5,6,2,74,null,null,null,6,4,2,74]
[null,null,null,null,null,null,null,null,null,null,null,null,null,null,null,null,null,null,null,null,null,null,null,null,null,null,null,null,null,null,null,null,null,null,2,4,3,75,75,null,null,null,null,null,null,null,null,null,4,4,3,75,null,null,null,15,null,null,null,null,5,2,3,75,null,null,15,null,null,null,5,6,3,75,null,null,null,6,4,3,75]
[null,null,null,null,null,null,null,null,null,null,null,null,null,null,null,null,null,null,null,null,null,null,null,null,null,null,null,null,null,null,null,null,null,null,2,4,4,76,76,null,null,null,null,null,null,null,null,null,4,4,4,76,null,null,null,16,null,null,null,null,5,2,4,76,null,null,16,null,null,null,5,6,4,76,null,null,null,6,4,4,76]
[null,null,null,null,null,null,null,null,null,null,null,null,null,null,null,null,null,null,null,null,null,null,null,null,null,null,null,null,null,null,null,null,null,null,2,4,5,77,77,null,null,null,null,null,null,null,null,null,4,4,5,77,null,null,null,null,null,null,null,null,5,2,5,77,null,null,17,null,null,null,5,6,5,77,null,null,null,6,4,5,77]
[null,null,null,null,null,null,null,null,null,null,null,null,null,null,null,null,null,null,null,null,null,null,null,null,null,null,null,null,null,null,null,null,null,null,2,4,6,78,78,null,null,null,null,null,null,null,null,null,4,4,6,78,null,null,null,null,null,null,null,null,5,2,6,78,null,null,18,null,null,null,5,6,6,78,null,null,null,6,4,6,78]
[null,null,null,null,null,null,null,null,null,null,null,null,null,null,null,null,null,null,null,null,null,null,null,null,null,null,null,null,null,null,null,null,null,null,2,4,7,79,79,null,null,null,null,null,null,null,null,null,4,4,7,79,null,null,null,null,null,null,null,null,5,2,7,79,null,null,19,null,null,null,5,6,7,79,null,null,null,6,4,7,79]
[null,null,null,null,null,null,null,null,null,null,null,null,null,null,null,null,null,null,null,null,null,null,null,null,null,null,null,null,null,null,null,null,null,null,2,4,8,80,80,null,null,null,null,null,null,null,null,null,4,4,8,80,null,null,null,null,8,null,null,null,5,2,8,80,null,null,20,null,null,null,5,6,8,80,null,null,null,6,4,8,80]
[null,null,null,null,null,null,null,null,null,null,null,null,null,null,null,null,null,null,null,null,null,null,null,null,null,null,null,null,null,null,null,null,null,null,2,4,9,81,81,null,null,null,null,null,null,null,null,null,4,4,9,81,null,null,null,null,9,null,null,null,5,2,9,81,null,null,21,null,null,null,5,6,9,81,null,null,null,6,4,9,81]
[null,null,null,null,null,null,null,null,null,null,null,null,null,null,null,null,null,null,null,null,null,null,null,null,null,null,null,null,null,null,null,null,null,null,2,4,10,82,82,null,null,null,null,null,null,null,null,null,4,4,10,82,null,null,null,null,10,null,null,null,5,2,10,82,null,null,null,null,null,null,5,6,10,82,null,null,null,6,4,10,82]
[null,null,null,null,null,null,null,null,null,null,null,null,null,null,null,null,null,null,null,null,null,null,null,null,null,null,null,null,null,null,null,null,null,null,2,4,11,83,83,null,null,null,null,null,null,null,null,null,4,4,11,83,null,null,null,null,11,null,null,null,5,2,11,83,null,null,null,null,null,null,5,6,11,83,null,null,null,6,4,11,83]
[null,null,null,null,null,null,null,null,null,null,null,null,null,null,null,null,null,null,null,null,null,null,null,null,null,null,null,null,null,null,null,null,null,null,2,4,12,84,84,null,null,null,null,null,null,null,null,null,4,4,12,84,null,null,null,null,12,null,null,null,5,2,12,84,null,null,null,null,null,null,5,6,12,84,null,null,null,6,4,12,84]
[null,null,null,null,null,null,null,null,null,null,null,null,null,null,null,null,null,null,null,null,null,null,null,null,null,null,null,null,null,null,null,null,null,null,2,4,13,85,85,null,null,null,"`",null,null,null,null,null,4,4,13,85,null,null,null,null,13,null,null,null,5,2,13,85,null,null,null,null,null,null,5,6,13,85,null,null,null,6,4,13,85]
[null,null,null,null,null,null,null,null,null,null,null,null,null,null,null,null,null,null,null,null,null,null,null,null,null,null,null,null,null,null,null,null,null,null,2,4,14,86,86,null,null,null,null,null,null,null,null,null,4,4,14,86,null,null,null,null,14,null,null,null,5,2,14,86,null,null,null,null,null,null,5,6,14,86,null,null,null,6,4,14,86]
[null,null,null,null,null,null,null,null,null,null,null,null,null,null,null,null,null,null,null,null,null,null,null,null,null,null,null,null,null,null,null,null,null,null,2,4,15,87,87,null,null,null,null,null,null,null,null,null,4,4,15,87,null,null,null,null,15,null,null,null,5,2,15,87,null,null,null,null,null,null,5,6,15,87,null,null,null,6,4,15,87]
[null,null,null,null,null,null,null,null,null,null,null,null,null,null,null,null,null,null,null,null,null,null,null,null,null,null,null,null,null,null,null,null,null,null,2,4,16,88,88,null,null,null,null,null,null,null,null,null,4,4,16,88,null,null,null,null,16,null,null,null,5,2,16,88,null,null,null,null,null,null,5,6,16,88,null,null,null,6,4,16,88]
[null,null,null,null,null,null,null,null,null,null,null,null,null,null,null,null,null,null,null,null,null,null,null,null,null,null,null,null,null,null,null,null,null,null,2,4,17,89,89,null,null,null,null,null,null,null,null,null,4,4,17,89,null,null,null,null,null,null,null,null,5,2,17,89,null,null,null,null,null,null,5,6,17,89,null,null,null,6,4,17,89]
[null,null,null,null,null,null,null,null,null,null,null,null,null,null,null,null,null,null,null,null,null,null,null,null,null,null,null,null,null,null,null,null,null,null,2,4,18,90,90,null,null,null,null,null,null,null,null,null,4,4,18,90,null,null,null,null,null,null,null,null,5,2,18,90,null,null,null,null,null,null,5,6,18,90,null,null,null,6,4,18,90]
[null,null,null,null,null,null,null,null,null,null,null,null,null,null,null,null,null,null,null,null,null,null,null,null,null,null,null,null,null,null,null,null,null,null,2,4,19,91,91,null,null,null,null,null,null,null,null,null,4,4,19,91,null,null,null,null,null,null,null,null,5,2,19,91,null,null,null,null,null,null,5,6,19,91,null,null,null,6,4,19,91]
[null,null,null,null,null,null,null,null,null,null,null,null,null,null,null,null,null,null,null,null,null,null,null,null,null,null,null,null,null,null,null,null,null,null,2,4,20,92,92,null,null,null,null,null,null,null,null,null,4,4,20,92,null,null,null,null,null,null,null,null,5,2,20,92,null,null,null,null,null,null,5,6,20,92,null,null,null,6,4,20,92]
[null,null,null,null,null,null,null,null,null,null,null,null,null,null,null,null,null,null,null,null,null,null,null,null,null,null,null,null,null,null,null,null,null,null,2,4,21,93,93,null,null,null,null,null,null,null,null,null,4,4,21,93,null,null,null,null,null,null,null,null,5,2,21,93,null,null,null,null,null,null,5,6,21,93,null,null,null,6,4,21,93]
[null,null,null,null,null,null,null,null,null,null,null,null,null,null,null,null,null,null,null,null,null,null,null,null,null,null,null,null,null,null,null,null,null,null,2,4,22,94,94,null,null,null,null,null,null,null,null,null,4,4,22,94,null,null,null,null,null,null,null,null,5,2,22,94,null,null,null,null,null,null,5,6,22,94,null,null,null,6,4,22,94]
[null,null,null,null,null,null,null,null,null,null,null,null,null,null,null,null,null,null,null,null,null,null,null,null,null,null,null,null,null,null,null,null,null,null,2,4,23,95,95,null,null,null,null,null,null,null,null,null,4,4,23,95,null,null,null,null,null,null,null,null,5,2,23,95,null,null,null,null,null,null,5,6,23,95,null,null,null,6,4,23,95]
[null,null,null,null,null,null,null,null,null,null,null,null,null,null,null,null,null,null,null,null,null,null,null,null,null,null,null,null,null,null,null,null,null,null,2,4,24,96,96,null,null,null,null,null,null,null,null,null,4,4,24,96,null,null,null,null,null,null,null,null,5,2,24,96,null,null,null,null,null,null,5,6,24,96,null,null,null,6,4,24,96]
[null,null,null,null,null,null,null,null,null,null,null,null,null,null,null,null,null,null,null,null,null,null,null,null,null,null,null,null,null,null,null,null,null,null,2,5,1,97,null,1]
[null,null,null,null,null,null,null,null,null,null,null,null,null,null,null,null,null,null,null,null,null,null,null,null,null,null,null,null,null,null,null,null,null,null,2,5,2,98,null,2]
[null,null,null,null,null,null,null,null,null,null,null,null,null,null,null,null,null,null,null,null,null,null,null,null,null,null,null,null,null,null,null,null,null,null,2,5,3,99,null,3]
[null,null,null,null,null,null,null,null,null,null,null,null,null,null,null,null,null,null,null,null,null,null,null,null,null,null,null,null,null,null,null,null,null,null,2,5,4,100,null,4]
[null,null,null,null,null,null,null,null,null,null,null,null,null,null,null,null,null,null,null,null,null,null,null,null,null,null,null,null,null,null,null,null,null,null,2,5,5,101,null,5]
[null,null,null,null,null,null,null,null,null,null,null,null,null,null,null,null,null,null,null,null,null,null,null,null,null,null,null,null,null,null,null,null,null,null,2,5,6,102,null,6]
[null,null,null,null,null,null,null,null,null,null,null,null,null,null,null,null,null,null,null,null,null,null,null,null,null,null,null,null,null,null,null,null,null,null,2,5,7,103,null,7]
[null,null,null,null,null,null,null,null,null,null,null,null,null,null,null,null,null,null,null,null,null,null,null,null,null,null,null,null,null,null,null,null,null,null,2,5,8,104,null,8]
[null,null,null,null,null,null,null,null,null,null,null,null,null,null,null,null,null,null,null,null,null,null,null,null,null,null,null,null,null,null,null,null,null,null,2,5,9,105,null,9]
[null,null,null,null,null,null,null,null,null,null,null,null,null,null,null,null,null,null,null,null,null,null,null,null,null,null,null,null,null,null,null,null,null,null,2,5,10,106,null,10]
[null,null,null,null,null,null,null,null,null,null,null,null,null,null,null,null,null,null,null,null,null,null,null,null,null,null,null,null,null,null,null,null,null,null,2,5,11,107,null,11]
[null,null,null,null,null,null,null,null,null,null,null,null,null,null,null,null,null,null,null,null,null,null,null,null,null,null,null,null,null,null,null,null,null,null,2,5,12,108,null,12]
[null,null,null,null,null,null,null,null,null,null,null,null,null,null,null,null,null,null,null,null,null,null,null,null,null,null,null,null,null,null,null,null,null,null,2,5,13,109,null,13]
[null,null,null,null,null,null,null,null,null,null,null,null,null,null,null,null,null,null,null,null,null,null,null,null,null,null,null,null,null,null,null,null,null,null,2,5,14,110,null,14]
[null,null,null,null,null,null,null,null,null,null,null,null,null,null,null,null,null,null,null,null,null,null,null,null,null,null,null,null,null,null,null,null,null,null,2,5,15,111,null,15]
[null,null,null,null,null,null,null,null,null,null,null,null,null,null,null,null,null,null,null,null,null,null,null,null,null,null,null,null,null,null,null,null,null,null,2,5,16,112,null,16]
[null,null,null,null,null,null,null,null,null,null,null,null,null,null,null,null,null,null,null,null,null,null,null,null,null,null,null,null,null,null,null,null,null,null,2,5,17,113,null,17]
[null,null,null,null,null,null,null,null,null,null,null,null,null,null,null,null,null,null,null,null,null,null,null,null,null,null,null,null,null,null,null,null,null,null,2,5,18,114,null,18]
[null,null,null,null,null,null,null,null,null,null,null,null,null,null,null,null,null,null,null,null,null,null,null,null,null,null,null,null,null,null,null,null,null,null,2,5,19,115,null,19]
[null,null,null,null,null,null,null,null,null,null,null,null,null,null,null,null,null,null,null,null,null,null,null,null,null,null,null,null,null,null,null,null,null,null,2,5,20,116,null,20]
[null,null,null,null,null,null,null,null,null,null,null,null,null,null,null,null,null,null,null,null,null,null,null,null,null,null,null,null,null,null,null,null,null,null,2,5,21,117,null,21]
[null,null,null,null,null,null,null,null,null,null,null,null,null,null,null,null,null,null,null,null,null,null,null,null,null,null,null,null,null,null,null,null,null,null,2,5,22,118,null,22]
[null,null,null,null,null,null,null,null,null,null,null,null,null,null,null,null,null,null,null,null,null,null,null,null,null,null,null,null,null,null,null,null,null,null,2,5,23,119,null,23]
[null,null,null,null,null,null,null,null,null,null,null,null,null,null,null,null,null,null,null,null,null,null,null,null,null,null,null,null,null,null,null,null,null,null,2,5,24,120,null,24]
[null,null,null,null,null,null,null,null,null,null,null,null,null,null,null,null,null,null,null,null,null,null,null,null,null,null,null,null,null,null,null,null,null,null,2,6,1,121,null,25]
[null,null,null,null,null,null,null,null,null,null,null,null,null,null,null,null,null,null,null,null,null,null,null,null,null,null,null,null,null,null,null,null,null,null,2,6,2,122,null,26]
[null,null,null,null,null,null,null,null,null,null,null,null,null,null,null,null,null,null,null,null,null,null,null,null,null,null,null,null,null,null,null,null,null,null,2,6,3,123,null,27]
[null,null,null,null,null,null,null,null,null,null,null,null,null,null,null,null,null,null,null,null,null,null,null,null,null,null,null,null,null,null,null,null,null,null,2,6,4,124,null,28]
[null,null,null,null,null,null,null,null,null,null,null,null,null,null,null,null,null,null,null,null,null,null,null,null,null,null,null,null,null,null,null,null,null,null,2,6,5,125,null,29]
[null,null,null,null,null,null,null,null,null,null,null,null,null,null,null,null,null,null,null,null,null,null,null,null,null,null,null,null,null,null,null,null,null,null,2,6,6,126,null,30]
[null,null,null,null,null,null,null,null,null,null,null,null,null,null,null,null,null,null,null,null,null,null,null,null,null,null,null,null,null,null,null,null,null,null,2,6,7,127,null,31]
[null,null,null,null,null,null,null,null,null,null,null,null,null,null,null,null,null,null,null,null,null,null,null,null,null,null,null,null,null,null,null,null,null,null,2,6,8,128,null,32]
[null,null,null,null,null,null,null,null,null,null,null,null,null,null,null,null,null,null,null,null,null,null,null,null,null,null,null,null,null,null,null,null,null,null,2,6,9,129,null,33]
[null,null,null,null,null,null,null,null,null,null,null,null,null,null,null,null,null,null,null,null,null,null,null,null,null,null,null,null,null,null,null,null,null,null,2,6,10,130,null,34]
[null,null,null,null,null,null,null,null,null,null,null,null,null,null,null,null,null,null,null,null,null,null,null,null,null,null,null,null,null,null,null,null,null,null,2,6,11,131,null,35]
[null,null,null,null,null,null,null,null,null,null,null,null,null,null,null,null,null,null,null,null,null,null,null,null,null,null,null,null,null,null,null,null,null,null,2,6,12,132,null,36]
[null,null,null,null,null,null,null,null,null,null,null,null,null,null,null,null,null,null,null,null,null,null,null,null,null,null,null,null,null,null,null,null,null,null,2,6,13,133,null,37]
[null,null,null,null,null,null,null,null,null,null,null,null,null,null,null,null,null,null,null,null,null,null,null,null,null,null,null,null,null,null,null,null,null,null,2,6,14,134,null,38]
[null,null,null,null,null,null,null,null,null,null,null,null,null,null,null,null,null,null,null,null,null,null,null,null,null,null,null,null,null,null,null,null,null,null,2,6,15,135,null,39]
[null,null,null,null,null,null,null,null,null,null,null,null,null,null,null,null,null,null,null,null,null,null,null,null,null,null,null,null,null,null,null,null,null,null,2,6,16,136,null,40]
[null,null,null,null,null,null,null,null,null,null,null,null,null,null,null,null,null,null,null,null,null,null,null,null,null,null,null,null,null,null,null,null,null,null,2,6,17,137,null,41]
[null,null,null,null,null,null,null,null,null,null,null,null,null,null,null,null,null,null,null,null,null,null,null,null,null,null,null,null,null,null,null,null,null,null,2,6,18,138,null,42]
[null,null,null,null,null,null,null,null,null,null,null,null,null,null,null,null,null,null,null,null,null,null,null,null,null,null,null,null,null,null,null,null,null,null,2,6,19,139,null,43]
[null,null,null,null,null,null,null,null,null,null,null,null,null,null,null,null,null,null,null,null,null,null,null,null,null,null,null,null,null,null,null,null,null,null,2,6,20,140,null,44]
[null,null,null,null,null,null,null,null,null,null,null,null,null,null,null,null,null,null,null,null,null,null,null,null,null,null,null,null,null,null,null,null,null,null,2,6,21,141,null,45]
[null,null,null,null,null,null,null,null,null,null,null,null,null,null,null,null,null,null,null,null,null,null,null,null,null,null,null,null,null,null,null,null,null,null,2,6,22,142,null,46]
[null,null,null,null,null,null,null,null,null,null,null,null,null,null,null,null,null,null,null,null,null,null,null,null,null,null,null,null,null,null,null,null,null,null,2,6,23,143,null,47]
[null,null,null,null,null,null,null,null,null,null,null,null,null,null,null,null,null,null,null,null,null,null,null,null,null,null,null,null,null,null,null,null,null,null,2,6,24,144,null,48]
[null,null,null,null,null,null,null,null,null,null,null,null,null,null,null,null,null,null,null,null,null,null,null,null,null,null,null,null,null,null,null,null,null,null,3,1,1,145,null,null,null,1]
[null,null,null,null,null,null,null,null,null,null,null,null,null,null,null,null,null,null,null,null,null,null,null,null,null,null,null,null,null,null,null,null,null,null,3,1,2,146,null,null,null,2]
[null,null,null,null,null,null,null,null,null,null,null,null,null,null,null,null,null,null,null,null,null,null,null,null,null,null,null,null,null,null,null,null,null,null,3,1,3,147,null,null,null,3]
[null,null,null,null,null,null,null,null,null,null,null,null,null,null,null,null,null,null,null,null,null,null,null,null,null,null,null,null,null,null,null,null,null,null,3,1,4,148,null,null,null,4]
[null,null,null,null,null,null,null,null,null,null,null,null,null,null,null,null,null,null,null,null,null,null,null,null,null,null,null,null,null,null,null,null,null,null,3,1,5,149,null,null,null,5]
[null,null,null,null,null,null,null,null,null,null,null,null,null,null,null,null,null,null,null,null,null,null,null,null,null,null,null,null,null,null,null,null,null,null,3,1,6,150,null,null,null,6]
[null,null,null,null,null,null,null,null,null,null,null,null,null,null,null,null,null,null,null,null,null,null,null,null,null,null,null,null,null,null,null,null,null,null,3,1,7,151,null,null,null,7]
[null,null,null,null,null,null,null,null,null,null,null,null,null,null,null,null,null,null,null,null,null,null,null,null,null,null,null,null,null,null,null,null,null,null,3,1,8,152,null,null,null,8]
[null,null,null,null,null,null,null,null,null,null,null,null,null,null,null,null,null,null,null,null,null,null,null,null,null,null,null,null,null,null,null,null,null,null,3,1,9,153,null,null,null,9]
[null,null,null,null,null,null,null,null,null,null,null,null,null,null,null,null,null,null,null,null,null,null,null,null,null,null,null,null,null,null,null,null,null,null,3,1,10,154,null,null,null,10]
[null,null,null,null,null,null,null,null,null,null,null,null,null,null,null,null,null,null,null,null,null,null,null,null,null,null,null,null,null,null,null,null,null,null,3,1,11,155,null,null,null,11]
[null,null,null,null,null,null,null,null,null,null,null,null,null,null,null,null,null,null,null,null,null,null,null,null,null,null,null,null,null,null,null,null,null,null,3,1,12,156,null,null,null,12]
[null,null,null,null,null,null,null,null,null,null,null,null,null,null,null,null,null,null,null,null,null,null,null,null,null,null,null,null,null,null,null,null,null,null,3,1,13,157,null,null,null,13]
[null,null,null,null,null,null,null,null,null,null,null,null,null,null,null,null,null,null,null,null,null,null,null,null,null,null,null,null,null,null,null,null,null,null,3,1,14,158,null,null,null,14]
[null,null,null,null,null,null,null,null,null,null,null,null,null,null,null,null,null,null,null,null,null,null,null,null,null,null,null,null,null,null,null,null,null,null,3,1,15,159,null,null,null,15]
[null,null,null,null,null,null,null,null,null,null,null,null,null,null,null,null,null,null,null,null,null,null,null,null,null,null,null,null,null,null,null,null,null,null,3,1,16,160,null,null,null,16]
[null,null,null,null,null,null,null,null,null,null,null,null,null,null,null,null,null,null,null,null,null,null,null,null,null,null,null,null,null,null,null,null,null,null,3,1,17,161,null,null,null,17]
[null,null,null,null,null,null,null,null,null,null,null,null,null,null,null,null,null,null,null,null,null,null,null,null,null,null,null,null,null,null,null,null,null,null,3,1,18,162,null,null,null,18]
[null,null,null,null,null,null,null,null,null,null,null,null,null,null,null,null,null,null,null,null,null,null,null,null,null,null,null,null,null,null,null,null,null,null,3,1,19,163,null,null,null,19]
[null,null,null,null,null,null,null,null,null,null,null,null,null,null,null,null,null,null,null,null,null,null,null,null,null,null,null,null,null,null,null,null,null,null,3,1,20,164,null,null,null,20]
[null,null,null,null,null,null,null,null,null,null,null,null,null,null,null,null,null,null,null,null,null,null,null,null,null,null,null,null,null,null,null,null,null,null,3,1,21,165,null,null,null,21]
[null,null,null,null,null,null,null,null,null,null,null,null,null,null,null,null,null,null,null,null,null,null,null,null,null,null,null,null,null,null,null,null,null,null,3,1,22,166,null,null,null,22]
[null,null,null,null,null,null,null,null,null,null,null,null,null,null,null,null,null,null,null,null,null,null,null,null,null,null,null,null,null,null,null,null,null,null,3,1,23,167,null,null,null,23]
[null,null,null,null,null,null,null,null,null,null,null,null,null,null,null,null,null,null,null,null,null,null,null,null,null,null,null,null,null,null,null,null,null,null,3,1,24,168,null,null,null,24]
[null,null,null,null,null,null,null,null,null,null,null,null,null,null,null,null,null,null,null,null,null,null,null,null,null,null,null,null,null,null,null,null,null,null,3,2,1,169,null,null,null,25]
[null,null,null,null,null,null,null,null,null,null,null,null,null,null,null,null,null,null,null,null,null,null,null,null,null,null,null,null,null,null,null,null,null,null,3,2,2,170,null,null,null,26]
[null,null,null,null,null,null,null,null,null,null,null,null,null,null,null,null,null,null,null,null,null,null,null,null,null,null,null,null,null,null,null,null,null,null,3,2,3,171,null,null,null,27]
[null,null,null,null,null,null,null,null,null,null,null,null,null,null,null,null,null,null,null,null,null,null,null,null,null,null,null,null,null,null,null,null,null,null,3,2,4,172,null,null,null,28]
[null,null,null,null,null,null,null,null,null,null,null,null,null,null,null,null,null,null,null,null,null,null,null,null,null,null,null,null,null,null,null,null,null,null,3,2,5,173,null,null,null,29]
[null,null,null,null,null,null,null,null,null,null,null,null,null,null,null,null,null,null,null,null,null,null,null,null,null,null,null,null,null,null,null,null,null,null,3,2,6,174,null,null,null,30]
[null,null,null,null,null,null,null,null,null,null,null,null,null,null,null,null,null,null,null,null,null,null,null,null,null,null,null,null,null,null,null,null,null,null,3,2,7,175,null,null,null,31]
[null,null,null,null,null,null,null,null,null,null,null,null,null,null,null,null,null,null,null,null,null,null,null,null,null,null,null,null,null,null,null,null,null,null,3,2,8,176,null,null,null,32]
[null,null,null,null,null,null,null,null,null,null,null,null,null,null,null,null,null,null,null,null,null,null,null,null,null,null,null,null,null,null,null,null,null,null,3,2,9,177,null,null,null,33]
[null,null,null,null,null,null,null,null,null,null,null,null,null,null,null,null,null,null,null,null,null,null,null,null,null,null,null,null,null,null,null,null,null,null,3,2,10,178,null,null,null,34]
[null,null,null,null,null,null,null,null,null,null,null,null,null,null,null,null,null,null,null,null,null,null,null,null,null,null,null,null,null,null,null,null,null,null,3,2,11,179,null,null,null,35]
[null,null,null,null,null,null,null,null,null,null,null,null,null,null,null,null,null,null,null,null,null,null,null,null,null,null,null,null,null,null,null,null,null,null,3,2,12,180,null,null,null,36]
[null,null,null,null,null,null,null,null,null,null,null,null,null,null,null,null,null,null,null,null,null,null,null,null,null,null,null,null,null,null,null,null,null,null,3,2,13,181,null,null,null,37]
[null,null,null,null,null,null,null,null,null,null,null,null,null,null,null,null,null,null,null,null,null,null,null,null,null,null,null,null,null,null,null,null,null,null,3,2,14,182,null,null,null,38]
[null,null,null,null,null,null,null,null,null,null,null,null,null,null,null,null,null,null,null,null,null,null,null,null,null,null,null,null,null,null,null,null,null,null,3,2,15,183,null,null,null,39]
[null,null,null,null,null,null,null,null,null,null,null,null,null,null,null,null,null,null,null,null,null,null,null,null,null,null,null,null,null,null,null,null,null,null,3,2,16,184,null,null,null,40]
[null,null,null,null,null,null,null,null,null,null,null,null,null,null,null,null,null,null,null,null,null,null,null,null,null,null,null,null,null,null,null,null,null,null,3,2,17,185,null,null,null,41]
[null,null,null,null,null,null,null,null,null,null,null,null,null,null,null,null,null,null,null,null,null,null,null,null,null,null,null,null,null,null,null,null,null,null,3,2,18,186,null,null,null,42]
[null,null,null,null,null,null,null,null,null,null,null,null,null,null,null,null,null,null,null,null,null,null,null,null,null,null,null,null,null,null,null,null,null,null,3,2,19,187,null,null,null,43]
[null,null,null,null,null,null,null,null,null,null,null,null,null,null,null,null,null,null,null,null,null,null,null,null,null,null,null,null,null,null,null,null,null,null,3,2,20,188,null,null,null,44]
[null,null,null,null,null,null,null,null,null,null,null,null,null,null,null,null,null,null,null,null,null,null,null,null,null,null,null,null,null,null,null,null,null,null,3,2,21,189,null,null,null,45]
[null,null,null,null,null,null,null,null,null,null,null,null,null,null,null,null,null,null,null,null,null,null,null,null,null,null,null,null,null,null,null,null,null,null,3,2,22,190,null,null,null,46]
[null,null,null,null,null,null,null,null,null,null,null,null,null,null,null,null,null,null,null,null,null,null,null,null,null,null,null,null,null,null,null,null,null,null,3,2,23,191,null,null,null,47]
[null,null,null,null,null,null,null,null,null,null,null,null,null,null,null,null,null,null,null,null,null,null,null,null,null,null,null,null,null,null,null,null,null,null,3,2,24,192,null,null,null,48]
[null,null,null,null,null,null,null,null,null,null,null,null,null,null,null,null,null,null,null,null,null,null,null,null,null,null,null,null,null,null,null,null,null,null,3,3,1,193,null,null,null,49]
[null,null,null,null,null,null,null,null,null,null,null,null,null,null,null,null,null,null,null,null,null,null,null,null,null,null,null,null,null,null,null,null,null,null,3,3,2,194,null,null,null,50]
[null,null,null,null,null,null,null,null,null,null,null,null,null,null,null,null,null,null,null,null,null,null,null,null,null,null,null,null,null,null,null,null,null,null,3,3,3,195,null,null,null,51]
[null,null,null,null,null,null,null,null,null,null,null,null,null,null,null,null,null,null,null,null,null,null,null,null,null,null,null,null,null,null,null,null,null,null,3,3,4,196,null,null,null,52]
[null,null,null,null,null,null,null,null,null,null,null,null,null,null,null,null,null,null,null,null,null,null,null,null,null,null,null,null,null,null,null,null,null,null,3,3,5,197,null,null,null,53]
[null,null,null,null,null,null,null,null,null,null,null,null,null,null,null,null,null,null,null,null,null,null,null,null,null,null,null,null,null,null,null,null,null,null,3,3,6,198,null,null,null,54]
[null,null,null,null,null,null,null,null,null,null,null,null,null,null,null,null,null,null,null,null,null,null,null,null,null,null,null,null,null,null,null,null,null,null,3,3,7,199,null,null,null,55]
[null,null,null,null,null,null,null,null,null,null,null,null,null,null,null,null,null,null,null,null,null,null,null,null,null,null,null,null,null,null,null,null,null,null,3,3,8,200,null,null,null,56]
[null,null,null,null,null,null,null,null,null,null,null,null,null,null,null,null,null,null,null,null,null,null,null,null,null,null,null,null,null,null,null,null,null,null,3,3,9,201,null,null,null,57]
[null,null,null,null,null,null,null,null,null,null,null,null,null,null,null,null,null,null,null,null,null,null,null,null,null,null,null,null,null,null,null,null,null,null,3,3,10,202,null,null,null,58]
[null,null,null,null,null,null,null,null,null,null,null,null,null,null,null,null,null,null,null,null,null,null,null,null,null,null,null,null,null,null,null,null,null,null,3,3,11,203,null,null,null,59]
[null,null,null,null,null,null,null,null,null,null,null,null,null,null,null,null,null,null,null,null,null,null,null,null,null,null,null,null,null,null,null,null,null,null,3,3,12,204,null,null,null,60]
[null,null,null,null,null,null,null,null,null,null,null,null,null,null,null,null,null,null,null,null,null,null,null,null,null,null,null,null,null,null,null,null,null,null,3,3,13,205,null,null,null,61]
[null,null,null,null,null,null,null,null,null,null,null,null,null,null,null,null,null,null,null,null,null,null,null,null,null,null,null,null,null,null,null,null,null,null,3,3,14,206,null,null,null,62]
[null,null,null,null,null,null,null,null,null,null,null,null,null,null,null,null,null,null,null,null,null,null,null,null,null,null,null,null,null,null,null,null,null,null,3,3,15,207,null,null,null,63]
[null,null,null,null,null,null,null,null,null,null,null,null,null,null,null,null,null,null,null,null,null,null,null,null,null,null,null,null,null,null,null,null,null,null,3,3,16,208,null,null,null,64]
[null,null,null,null,null,null,null,null,null,null,null,null,null,null,null,null,null,null,null,null,null,null,null,null,null,null,null,null,null,null,null,null,null,null,3,3,17,209,null,null,null,65]
[null,null,null,null,null,null,null,null,null,null,null,null,null,null,null,null,null,null,null,null,null,null,null,null,null,null,null,null,null,null,null,null,null,null,3,3,18,210,null,null,null,66]
[null,null,null,null,null,null,null,null,null,null,null,null,null,null,null,null,null,null,null,null,null,null,null,null,null,null,null,null,null,null,null,null,null,null,3,3,19,211,null,null,null,67]
[null,null,null,null,null,null,null,null,null,null,null,null,null,null,null,null,null,null,null,null,null,null,null,null,null,null,null,null,null,null,null,null,null,null,3,3,20,212,null,null,null,68]
[null,null,null,null,null,null,null,null,null,null,null,null,null,null,null,null,null,null,null,null,null,null,null,null,null,null,null,null,null,null,null,null,null,null,3,3,21,213,null,null,null,69]
[null,null,null,null,null,null,null,null,null,null,null,null,null,null,null,null,null,null,null,null,null,null,null,null,null,null,null,null,null,null,null,null,null,null,3,3,22,214,null,null,null,70]
[null,null,null,null,null,null,null,null,null,null,null,null,null,null,null,null,null,null,null,null,null,null,null,null,null,null,null,null,null,null,null,null,null,null,3,3,23,215,null,null,null,71]
[null,null,null,null,null,null,null,null,null,null,null,null,null,null,null,null,null,null,null,null,null,null,null,null,null,null,null,null,null,null,null,null,null,null,3,3,24,216,null,null,null,72]
[null,null,null,null,null,null,null,null,null,null,null,null,null,null,null,null,null,null,null,null,null,null,null,null,null,null,null,null,null,null,null,null,null,null,3,4,1,217,null,null,null,null,1]
[null,null,null,null,null,null,null,null,null,null,null,null,null,null,null,null,null,null,null,null,null,null,null,null,null,null,null,null,null,null,null,null,null,null,3,4,2,218,null,null,null,null,2]
[null,null,null,null,null,null,null,null,null,null,null,null,null,null,null,null,null,null,null,null,null,null,null,null,null,null,null,null,null,null,null,null,null,null,3,4,3,219,null,null,null,null,3]
[null,null,null,null,null,null,null,null,null,null,null,null,null,null,null,null,null,null,null,null,null,null,null,null,null,null,null,null,null,null,null,null,null,null,3,4,4,220,null,null,null,null,4]
[null,null,null,null,null,null,null,null,null,null,null,null,null,null,null,null,null,null,null,null,null,null,null,null,null,null,null,null,null,null,null,null,null,null,3,4,5,221,null,null,null,null,5]
[null,null,null,null,null,null,null,null,null,null,null,null,null,null,null,null,null,null,null,null,null,null,null,null,null,null,null,null,null,null,null,null,null,null,3,4,6,222,null,null,null,null,6]
[null,null,null,null,null,null,null,null,null,null,null,null,null,null,null,null,null,null,null,null,null,null,null,null,null,null,null,null,null,null,null,null,null,null,3,4,7,223,null,null,null,null,7]
[null,null,null,null,null,null,null,null,null,null,null,null,null,null,null,null,null,null,null,null,null,null,null,null,null,null,null,null,null,null,null,null,null,null,3,4,8,224,null,null,null,null,8]
[null,null,null,null,null,null,null,null,null,null,null,null,null,null,null,null,null,null,null,null,null,null,null,null,null,null,null,null,null,null,null,null,null,null,3,4,9,225,null,null,null,null,9]
[null,null,null,null,null,null,null,null,null,null,null,null,null,null,null,null,null,null,null,null,null,null,null,null,null,null,null,null,null,null,null,null,null,null,3,4,10,226,null,null,null,null,10]
[null,null,null,null,null,null,null,null,null,null,null,null,null,null,null,null,null,null,null,null,null,null,null,null,null,null,null,null,null,null,null,null,null,null,3,4,11,227,null,null,null,null,11]
[null,null,null,null,null,null,null,null,null,null,null,null,null,null,null,null,null,null,null,null,null,null,null,null,null,null,null,null,null,null,null,null,null,null,3,4,12,228,null,null,null,null,12]
[null,null,null,null,null,null,null,null,null,null,null,null,null,null,null,null,null,null,null,null,null,null,null,null,null,null,null,null,null,null,null,null,null,null,3,4,13,229,null,null,null,null,13]
[null,null,null,null,null,null,null,null,null,null,null,null,null,null,null,null,null,null,null,null,null,null,null,null,null,null,null,null,null,null,null,null,null,null,3,4,14,230,null,null,null,null,14]
[null,null,null,null,null,null,null,null,null,null,null,null,null,null,null,null,null,null,null,null,null,null,null,null,null,null,null,null,null,null,null,null,null,null,3,4,15,231,null,null,null,null,15]
[null,null,null,null,null,null,null,null,null,null,null,null,null,null,null,null,null,null,null,null,null,null,null,null,null,null,null,null,null,null,null,null,null,null,3,4,16,232,null,null,null,null,16]
[null,null,null,null,null,null,null,null,null,null,null,null,null,null,null,null,null,null,null,null,null,null,null,null,null,null,null,null,null,null,null,null,null,null,3,4,17,233,null,null,null,null,17]
[null,null,null,null,null,null,null,null,null,null,null,null,null,null,null,null,null,null,null,null,null,null,null,null,null,null,null,null,null,null,null,null,null,null,3,4,18,234,null,null,null,null,18]
[null,null,null,null,null,null,null,null,null,null,null,null,null,null,null,null,null,null,null,null,null,null,null,null,null,null,null,null,null,null,null,null,null,null,3,4,19,235,null,null,null,null,19]
[null,null,null,null,null,null,null,null,null,null,null,null,null,null,null,null,null,null,null,null,null,null,null,null,null,null,null,null,null,null,null,null,null,null,3,4,20,236,null,null,null,null,20]
[null,null,null,null,null,null,null,null,null,null,null,null,null,null,null,null,null,null,null,null,null,null,null,null,null,null,null,null,null,null,null,null,null,null,3,4,21,237,null,null,null,null,21]
[null,null,null,null,null,null,null,null,null,null,null,null,null,null,null,null,null,null,null,null,null,null,null,null,null,null,null,null,null,null,null,null,null,null,3,4,22,238,null,null,null,null,22]
[null,null,null,null,null,null,null,null,null,null,null,null,null,null,null,null,null,null,null,null,null,null,null,null,null,null,null,null,null,null,null,null,null,null,3,4,23,239,null,null,null,null,23]
[null,null,null,null,null,null,null,null,null,null,null,null,null,null,null,null,null,null,null,null,null,null,null,null,null,null,null,null,null,null,null,null,null,null,3,4,24,240,null,null,null,null,24]
[null,null,null,null,null,null,null,null,null,null,null,null,null,null,null,null,null,null,null,null,null,null,null,null,null,null,null,null,null,null,null,null,null,null,3,5,1,241,null,null,null,null,25]
[null,null,null,null,null,null,null,null,null,null,null,null,null,null,null,null,null,null,null,null,null,null,null,null,null,null,null,null,null,null,null,null,null,null,3,5,2,242,null,null,null,null,26]
[null,null,null,null,null,null,null,null,null,null,null,null,null,null,null,null,null,null,null,null,null,null,null,null,null,null,null,null,null,null,null,null,null,null,3,5,3,243,null,null,null,null,27]
[null,null,null,null,null,null,null,null,null,null,null,null,null,null,null,null,null,null,null,null,null,null,null,null,null,null,null,null,null,null,null,null,null,null,3,5,4,244,null,null,null,null,28]
[null,null,null,null,null,null,null,null,null,null,null,null,null,null,null,null,null,null,null,null,null,null,null,null,null,null,null,null,null,null,null,null,null,null,3,5,5,245,null,null,null,null,29,5]
[null,null,null,null,null,null,null,null,null,null,null,null,null,null,null,null,null,null,null,null,null,null,null,null,null,null,null,null,null,null,null,null,null,null,3,5,6,246,null,null,null,null,30,6]
[null,null,null,null,null,null,null,null,null,null,null,null,null,null,null,null,null,null,null,null,null,null,null,null,null,null,null,null,null,null,null,null,null,null,3,5,7,247,null,null,null,null,31,7]
[null,null,null,null,null,null,null,null,null,null,null,null,null,null,null,null,null,null,null,null,null,null,null,null,null,null,null,null,null,null,null,null,null,null,3,5,8,248,null,null,null,null,32,8]
[null,null,null,null,null,null,null,null,null,null,null,null,null,null,null,null,null,null,null,null,null,null,null,null,null,null,null,null,null,null,null,null,null,null,3,5,9,249,null,null,null,null,33,9]
[null,null,null,null,null,null,null,null,null,null,null,null,null,null,null,null,null,null,null,null,null,null,null,null,null,null,null,null,null,null,null,null,null,null,3,5,10,250,null,null,null,null,34,10]
[null,null,null,null,null,null,null,null,null,null,null,null,null,null,null,null,null,null,null,null,null,null,null,null,null,null,null,null,null,null,null,null,null,null,3,5,11,251,null,null,null,null,35,11]
[null,null,null,null,null,null,null,null,null,null,null,null,null,null,null,null,null,null,null,null,null,null,null,null,null,null,null,null,null,null,null,null,null,null,3,5,12,252,null,null,null,null,36,12]
[null,null,null,null,null,null,null,null,null,null,null,null,null,null,null,null,null,null,null,null,null,null,null,null,null,null,null,null,null,null,null,null,null,null,3,5,13,253,null,null,null,null,37,13]
[null,null,null,null,null,null,null,null,null,null,null,null,null,null,null,null,null,null,null,null,null,null,null,null,null,null,null,null,null,null,null,null,null,null,3,5,14,254,null,null,null,null,38,14]
[null,null,null,null,null,null,null,null,null,null,null,null,null,null,null,null,null,null,null,null,null,null,null,null,null,null,null,null,null,null,null,null,null,null,3,5,15,255,null,null,null,null,39,15]
[null,null,null,null,null,null,null,null,null,null,null,null,null,null,null,null,null,null,null,null,null,null,null,null,null,null,null,null,null,null,null,null,null,null,3,5,16,256,null,null,null,null,40]
[null,null,null,null,null,null,null,null,null,null,null,null,null,null,null,null,null,null,null,null,null,null,null,null,null,null,null,null,null,null,null,null,null,null,3,5,17,257,null,null,null,null,41]
[null,null,null,null,null,null,null,null,null,null,null,null,null,null,null,null,null,null,null,null,null,null,null,null,null,null,null,null,null,null,null,null,null,null,3,5,18,258,null,null,null,null,42]
[null,null,null,null,null,null,null,null,null,null,null,null,null,null,null,null,null,null,null,null,null,null,null,null,null,null,null,null,null,null,null,null,null,null,3,5,19,259,null,null,null,null,43]
[null,null,null,null,null,null,null,null,null,null,null,null,null,null,null,null,null,null,null,null,null,null,null,null,null,null,null,null,null,null,null,null,null,null,3,5,20,260,null,null,null,null,44]
[null,null,null,null,null,null,null,null,null,null,null,null,null,null,null,null,null,null,null,null,null,null,null,null,null,null,null,null,null,null,null,null,null,null,3,5,21,261,null,null,null,null,45]
[null,null,null,null,null,null,null,null,null,null,null,null,null,null,null,null,null,null,null,null,null,null,null,null,null,null,null,null,null,null,null,null,null,null,3,5,22,262,null,null,null,null,46]
[null,null,null,null,null,null,null,null,null,null,null,null,null,null,null,null,null,null,null,null,null,null,null,null,null,null,null,null,null,null,null,null,null,null,3,5,23,263,null,null,null,null,47]
[null,null,null,null,null,null,null,null,null,null,null,null,null,null,null,null,null,null,null,null,null,null,null,null,null,null,null,null,null,null,null,null,null,null,3,5,24,264,null,null,null,null,48]
[null,null,null,null,null,null,null,null,null,null,null,null,null,null,null,null,null,null,null,null,null,null,null,null,null,null,null,null,null,null,null,null,null,null,3,6,1,265]
[null,null,null,null,null,null,null,null,null,null,null,null,null,null,null,null,null,null,null,null,null,null,null,null,null,null,null,null,null,null,null,null,null,null,3,6,2,266]
[null,null,null,null,null,null,null,null,null,null,null,null,null,null,null,null,null,null,null,null,null,null,null,null,null,null,null,null,null,null,null,null,null,null,3,6,3,267]
[null,null,null,null,null,null,null,null,null,null,null,null,null,null,null,null,null,null,null,null,null,null,null,null,null,null,null,null,null,null,null,null,null,null,3,6,4,268]
[null,null,null,null,null,null,null,null,null,null,null,null,null,null,null,null,null,null,null,null,null,null,null,null,null,null,null,null,null,null,null,null,null,null,3,6,5,269]
[null,null,null,null,null,null,null,null,null,null,null,null,null,null,null,null,null,null,null,null,null,null,null,null,null,null,null,null,null,null,null,null,null,null,3,6,6,270]
[null,null,null,null,null,null,null,null,null,null,null,null,null,null,null,null,null,null,null,null,null,null,null,null,null,null,null,null,null,null,null,null,null,null,3,6,7,271]
[null,null,null,null,null,null,null,null,null,null,null,null,null,null,null,null,null,null,null,null,null,null,null,null,null,null,null,null,null,null,null,null,null,null,3,6,8,272]
[null,null,null,null,null,null,null,null,null,null,null,null,null,null,null,null,null,null,null,null,null,null,null,null,null,null,null,null,null,null,null,null,null,null,3,6,9,273]
[null,null,null,null,null,null,null,null,null,null,null,null,null,null,null,null,null,null,null,null,null,null,null,null,null,null,null,null,null,null,null,null,null,null,3,6,10,274]
[null,null,null,null,null,null,null,null,null,null,null,null,null,null,null,null,null,null,null,null,null,null,null,null,null,null,null,null,null,null,null,null,null,null,3,6,11,275]
[null,null,null,null,null,null,null,null,null,null,null,null,null,null,null,null,null,null,null,null,null,null,null,null,null,null,null,null,null,null,null,null,null,null,3,6,12,276]
[null,null,null,null,null,null,null,null,null,null,null,null,null,null,null,null,null,null,null,null,null,null,null,null,null,null,null,null,null,null,null,null,null,null,3,6,13,277]
[null,null,null,null,null,null,null,null,null,null,null,null,null,null,null,null,null,null,null,null,null,null,null,null,null,null,null,null,null,null,null,null,null,null,3,6,14,278]
[null,null,null,null,null,null,null,null,null,null,null,null,null,null,null,null,null,null,null,null,null,null,null,null,null,null,null,null,null,null,null,null,null,null,3,6,15,279]
[null,null,null,null,null,null,null,null,null,null,null,null,null,null,null,null,null,null,null,null,null,null,null,null,null,null,null,null,null,null,null,null,null,null,3,6,16,280]
[null,null,null,null,null,null,null,null,null,null,null,null,null,null,null,null,null,null,null,null,null,null,null,null,null,null,null,null,null,null,null,null,null,null,3,6,17,281]
[null,null,null,null,null,null,null,null,null,null,null,null,null,null,null,null,null,null,null,null,null,null,null,null,null,null,null,null,null,null,null,null,null,null,3,6,18,282]
[null,null,null,null,null,null,null,null,null,null,null,null,null,null,null,null,null,null,null,null,null,null,null,null,null,null,null,null,null,null,null,null,null,null,3,6,19,283]
[null,null,null,null,null,null,null,null,null,null,null,null,null,null,null,null,null,null,null,null,null,null,null,null,null,null,null,null,null,null,null,null,null,null,3,6,20,284]
[null,null,null,null,null,null,null,null,null,null,null,null,null,null,null,null,null,null,null,null,null,null,null,null,null,null,null,null,null,null,null,null,null,null,3,6,21,285]
[null,null,null,null,null,null,null,null,null,null,null,null,null,null,null,null,null,null,null,null,null,null,null,null,null,null,null,null,null,null,null,null,null,null,3,6,22,286]
[null,null,null,null,null,null,null,null,null,null,null,null,null,null,null,null,null,null,null,null,null,null,null,null,null,null,null,null,null,null,null,null,null,null,3,6,23,287]
[null,null,null,null,null,null,null,null,null,null,null,null,null,null,null,null,null,null,null,null,null,null,null,null,null,null,null,null,null,null,null,null,null,null,3,6,24,288]
[]
[]
[]
[]
[]
[]
[]
[]
[]
[]
[]
[]
[]
[]
[]
[]
[]
[]
[]
[]
[]
[]
[]
[]
[]
[]
[]
[]
[]
[]
[]
[]
[]
[]
[]
[]
[]
[]
[]
[]
[]
[]
[]
[]
[]
[]
[]
[]
[]
[]
[]
[]
[]
[]
[]
[]
[]
[]
[]
[]
[]
[]
[]
[]
[]
[]
[]
[]
[]
[]
[]
[]
[]
[]
[]
[]
[]
[]
[]
[]
[]
[]
[null,null,null,null,null,null,null,null,null,null,null,null,null,null,null,null,null,null,{"$f":"COUNTBYCOLOR(S8:S376,35,FALSE)","v":12},null,null,null,null,null,{"$f":"COUNTBYCOLOR(Y8:Y376,35,FALSE)","v":22}]
[null,null,null,null,null,null,null,null,null,null,null,null,null,null,null,null,null,null,{"$f":"COUNTBYCOLOR(S8:S376,6,FALSE)","v":12},null,null,null,null,null,{"$f":"COUNTBYCOLOR(Y8:Y376,6,FALSE)","v":2}]
[null,null,null,null,null,null,null,null,null,null,null,null,null,null,null,null,null,null,{"$f":"COUNTBYCOLOR(S8:S376,8,FALSE)","v":0},null,null,null,null,null,{"$f":"COUNTBYCOLOR(Y8:Y376,8,FALSE)","v":0}]
[]
[]
[]
[]
[]
[]
[]
[]
[]
[]
[]
[]
[]
[]
[]
[]
[]
[]
[]
[]
[]
[]
[]
[]
[]
[]
[]
[]
[]
[]
[]
[]
[]
[]
[]
[]
[]
[]
[]
[]
[]
[]
[]
[]
[]
[]
[]
[]
[]
[]
[]
[]
[]
[]
[]
[]
[]
[]
[]
[]
[]
[]
[]
[]
[]
[]
[]
[]
[null,null,null,null,null,{"$f":"COUNTBYCOLOR(F8:F447,35,FALSE)","v":5},null,null,null,null,null,{"$f":"COUNTBYCOLOR(L8:L447,35,FALSE)","v":0},null,null,null,null,null,null,null,null,null,null,null,null,null,null,null,null,null,null,{"$f":"COUNTBYCOLOR(AE8:AE447,35,FALSE)","v":30},null,null,null,null,null,null,{"$f":"COUNTBYCOLOR(AL8:AL447,35,FALSE)","v":243},{"$f":"COUNTBYCOLOR(AM8:AM447,35,FALSE)","v":86}]
[null,null,null,null,null,{"$f":"COUNTBYCOLOR(F8:F447,6,FALSE)","v":19},null,null,null,null,null,{"$f":"COUNTBYCOLOR(L8:L447,6,FALSE)","v":40},null,null,null,null,null,null,null,null,null,null,null,null,null,null,null,null,null,null,{"$f":"COUNTBYCOLOR(AE8:AE447,6,FALSE)","v":18},null,null,null,null,null,null,{"$f":"COUNTBYCOLOR(AL8:AL447,6,FALSE)","v":45},{"$f":"COUNTBYCOLOR(AM8:AM447,6,FALSE)","v":10}]
[null,null,null,null,null,{"$f":"COUNTBYCOLOR(F8:F447,8,FALSE)","v":0},null,null,null,null,null,{"$f":"COUNTBYCOLOR(L8:L447,8,FALSE)","v":0},null,null,null,null,null,null,null,null,null,null,null,null,null,null,null,null,null,null,{"$f":"COUNTBYCOLOR(AE8:AE447,8,FALSE)","v":0},null,null,null,null,null,null,{"$f":"COUNTBYCOLOR(AL8:AL447,8,FALSE)","v":0},{"$f":"COUNTBYCOLOR(AM8:AM447,8,FALSE)","v":0}]

{"sheet":"BB Sheet","index":1,"n_rows":31,"n_cols":14,"rows_kept":31,"cut":false,"hidden":false,"merged":[[5,2,5,4],[4,7,4,11],[5,8,5,10],[4,1,4,5]]}
[]
[]
[]
[]
[null,"LA2.1.02W",null,null,null,null,null,"LA2.1.02E"]
[null,null,"Splice Location",null,null,null,null,null,"Splice Location"]
[null,"hut Port","Module Assembly","Module","Port",{"$f":"B5","v":"LA2.1.02W"},null,"hut Port","Module Assembly","Module","Port",{"$f":"H5","v":"LA2.1.02E"}]
[null,null,1,4,1,1,"LA009",null,1,2,1,1,null,"LA007 R-DCS 2.1.3"]
[null,null,1,4,2,2,"LA009",null,1,2,2,2,null,"LA007 R-DCS 2.1.3"]
[null,null,1,4,3,3,"LA009",null,1,2,3,3,null,"LA007 R-DCS 2.1.13"]
[null,null,1,4,4,4,"LA009",null,1,2,4,4,null,"LA007 R-DCS 2.1.13"]
[null,null,1,4,5,5,"LA009 00B 1.5",null,1,2,5,5]
[null,null,1,4,6,6,"LA009 DCS-Y 5/1/2 x LA002-ADS-1001 1/26",null,1,2,6,6,null,"LA007 DCS-R 5/2/1 x LA002-ADS-1001 1/25"]
[null,null,1,4,7,7,"LA009 DCS-Y 6/2/1 /LA002-ADS-2001 1/0/4",null,1,2,7,7,null,"LA007 DCS-R 6/2/1 x LA002-ADS-2001 0/0/4"]
[null,null,1,4,8,8,null,null,1,2,8,8]
[null,null,1,4,9,9,null,null,1,2,9,9]
[null,null,1,4,10,10,null,null,1,2,10,10]
[null,null,1,4,11,11,null,null,1,2,11,11]
[null,null,1,4,12,12,null,null,1,2,12,12]
[null,null,1,3,1,13,null,null,1,1,1,13]
[null,null,1,3,2,14,null,null,1,1,2,14]
[null,null,1,3,3,15,null,null,1,1,3,15]
[null,null,1,3,4,16,null,null,1,1,4,16]
[null,null,1,3,5,17,null,null,1,1,5,17]
[null,null,1,3,6,18,null,null,1,1,6,18]
[null,null,1,3,7,19,null,null,1,1,7,19]
[null,null,1,3,8,20,null,null,1,1,8,20]
[null,null,1,3,9,21,null,null,1,1,9,21]
[null,null,1,3,10,22,null,null,1,1,10,22]
[null,null,1,3,11,23,null,null,1,1,11,23]
[null,null,1,3,12,24,null,null,1,1,12,24]